[Event "FIDE Candidates 2024"]
[Site "Toronto"]
[Date "2024.04.17"]
[Round "11.2"]
[White "Vidit, Santosh Gujrathi"]
[Black "Nepomniachtchi, Ian"]
[Result "0-1"]
[ECO "C42"]
[WhiteElo "2727"]
[BlackElo "2758"]
[Annotator "TA"]
[PlyCount "134"]
[EventDate "2024.04.02"]
[EventType "tourn"]
[EventCountry "CAN"]
[SourceTitle "playchess.com"]
[Source "ChessBase"]
[SourceQuality "1"]
[TimeControl "40/7200:1800+30"]

{[%evp 65,134,0,45,0,16,22,145,155,139,20,18,22,30,28,39,8,12,19,16,0,29,0,0,0,0,0,0,-19,0,0,0,0,0,-12,-15,-23,-30,-60,-8,-8,-8,-59,0,0,0,0,0,0,0,0,0,-8,-8,-75,-72,-426,-435,-939,-1106,-1031,-1113,-1693,-1316,-5758,-5750,-5418,-5422,-29988,-29989,-29989,-29990]} 1. e4 {[%emt 0:00:47]} e5 {[%emt 0:00:07]} 2. Nf3 {[%emt 0:00:19]} Nf6 {[%emt 0:00:10]} 3. Nxe5 {[%emt 0:00:15]} d6 {[%emt 0:00:05]} 4. Nc4 {[%emt 0:00:19]} Nxe4 {[%emt 0:00:12]} 5. Qe2 {[%emt 0:00:18]} Qe7 {[%emt 0:00:30]} 6. Nc3 {[%emt 0:00:21]} Nxc3 {[%emt 0:03:56]} 7. bxc3 {[%emt 0:00:14]} Bg4 {[%emt 0:11:42]} 8. Qxe7+ {[%emt 0:20:42]} Bxe7 {[%emt 0:01:31]} 9. Rb1 {[%emt 0:00:14]} b6 {[%emt 0:00:35]} 10. d4 {[%emt 0:06:22]} Be6 {[%emt 0:02:44]} 11. a4 {[%emt 0:09:22]} O-O {[%emt 0:07:18]} 12. Ne3 {[%emt 0:01:19]} Bg5 {[%emt 0:02:16]} 13. c4 {[%emt 0:09:34]} Re8 {[%emt 0:05:40]} 14. h4 {[%emt 0:08:54]} Bf6 {[%emt 0:03:10]} 15. c3 {[%emt 0:07:16]} c5 {[%emt 0:00:37]} 16. Bd3 {[%emt 0:14:41]} Nc6 {[%emt 0:20:24]} 17. d5 {[%emt 0:00:51]} Ne5 {[%emt 0:01:31]} 18. Bxh7+ {[%emt 0:00:41]} Kxh7 {[%emt 0:00:27]} 19. dxe6 {[%emt 0:00:02]} fxe6 {[%emt 0:00:52]} 20. Ke2 {[%emt 0:03:33]} Rad8 {[%emt 0:01:03]} 21. g4 {[%emt 0:06:01]} g6 {[%emt 0:02:34]} 22. g5 {[%emt 0:02:38]} Bg7 {[%emt 0:00:59]} 23. a5 {[%emt 0:02:25]} bxa5 {[%emt 0:04:50]} 24. Rb7 {[%emt 0:02:58]} Rd7 {[%emt 0:02:49]} 25. Rxd7 {[%emt 0:00:21]} Nxd7 {[%emt 0:00:02]} 26. Rd1 {[%emt 0:00:17]} Bf8 {[%emt 0:00:46]} 27. Ng4 {[%emt 0:01:38]} Rb8 {[%emt 0:05:42]} 28. Bf4 {[%emt 0:00:22]} Rb2+ {[%emt 0:03:17]} 29. Kf3 {[%emt 0:00:41]} e5 {[%emt 0:02:13]} 30. Be3 {[%emt 0:01:07]} Nb6 {[%emt 0:11:23]} 31. Nf6+ {[%emt 0:02:43]} Kh8 {[%emt 0:01:51]} 32. Ke4 {[%emt 0:01:32]} a4 {[%emt 0:00:05]} 33. Ra1 {[%emt 0:02:15]} Rb3 {[%emt 0:01:18]} 34. Kd3 {[%emt 0:00:59]} a3 {[%emt 0:02:19]} 35. Bc1 {[%emt 0:00:32]} a5 {[%emt 0:02:06]} (35... Na4 $11 {remains equal.}) 36. Bxa3 $16 {[%emt 0:01:28]} (36. Rxa3 $6 Rxa3 37. Bxa3 d5 $11) 36... d5 {[%emt 0:01:51] [#]} 37. Kc2 {[%emt 0:01:06]} (37. Bc1 $1 $16 dxc4+ 38. Kc2) 37... dxc4 $11 {[%emt 0:00:06]} 38. Ne4 {[%emt 0:00:23]} Rb5 {[%emt 0:03:23]} 39. Rd1 {[%emt 0:00:34]} Be7 {[%emt 0:00:30]} 40. Re1 {[%emt 0:00:00]} Kg7 {[%emt 0:00:00]} 41. Nd2 {[%emt 0:03:29]} Bd6 {[%emt 0:04:24]} 42. Ne4 {[%emt 0:10:51]} Be7 {[%emt 0:00:45]} 43. Ng3 {[%emt 0:00:48]} Rb3 $1 {[%emt 0:06:58]} 44. Bc1 {[%emt 0:01:05]} (44. Rxe5 Bd6 45. Re6 (45. Bxc5 $2 {loses.} Bxe5 46. Ne4 Nd5 $19) 45... Bxg3 46. Bxc5 (46. fxg3 $2 Na4 $19) 46... Nd5 (46... Na4 $2 47. Bd4+ Kf7 48. Rf6+ Ke8 49. fxg3 $18) 47. fxg3 Rxc3+ 48. Kd1 Rxg3) 44... Nd5 {[%emt 0:03:24]} 45. Ne4 {[%emt 0:08:43]} Kf7 {[%emt 0:01:30]} 46. Bd2 {[%emt 0:02:46]} a4 {[%emt 0:07:11]} 47. Ra1 {[%emt 0:00:09]} Nb6 {[%emt 0:02:17]} 48. Be3 {[%emt 0:01:41]} Rb5 {[%emt 0:00:18]} 49. Nd2 {[%emt 0:01:14]} Ra5 {[%emt 0:01:47]} 50. Kb2 {[%emt 0:01:26]} Ke6 {[%emt 0:01:32]} 51. Ka3 {[%emt 0:00:43]} Rb5 {[%emt 0:01:10]} ({Black should try} 51... Ra8 $15) 52. Rc1 $11 {[%emt 0:01:05]} Kf5 {[%emt 0:01:41]} 53. f3 {[%emt 0:00:25]} ({White should play} 53. Rg1 $11) 53... Nd5 {[%emt 0:07:01]} (53... Bf8 $1 $15) 54. Kxa4 $11 {[%emt 0:00:37]} Rb8 {[%emt 0:00:43]} 55. Nxc4 {[%emt 0:00:45]} e4 {[%emt 0:00:09]} 56. fxe4+ {[%emt 0:03:10]} Kxe4 {[%emt 0:00:01]} 57. Bf2 {[%emt 0:00:51]} Kd3 {[%emt 0:00:19]} 58. Bg3 {[%emt 0:02:07]} Nxc3+ {[%emt 0:03:10]} 59. Ka3 {[%emt 0:01:20]} (59. Rxc3+ $11 {keeps the balance.} Kxc3 60. Bxb8 Kxc4 61. Be5) 59... Rb4 $17 {[%emt 0:01:12]} 60. Nb2+ $2 {[%emt 0:00:16][%mdl 8192]} (60. Ne5+ $17 Kd2 61. Rg1) 60... Kd2 $19 {[%emt 0:00:07]} 61. Rf1 {[%emt 0:00:17] [#]} (61. Rg1 $142 c4 62. Rg2+ Ne2 63. Be5) 61... c4 $1 $19 {[%emt 0:00:53]} 62. Rf2+ {[%emt 0:00:42]} Ne2 {[%emt 0:00:30]} (62... Ke3 63. Nxc4+ Rxc4+ 64. Kb3 $19) 63. Be5 {[%emt 0:00:41]} c3 {[%emt 0:00:27]} 64. Rf7 {[%emt 0:00:43]} Rb7+ {[%emt 0:00:52]} ({Weaker is} 64... Rxb2+ 65. Rxe7 Rb6 66. Rd7+ Kc1 67. Bxc3 $11) 65. Ka4 {[%emt 0:00:08]} c2 {[%emt 0:00:19]} 66. Nc4+ {[%emt 0:00:47]} Kd3 {[%emt 0:00:01]} 67. Nb2+ {[%emt 0:00:34]} Ke4 {[%emt 0:00:06]} 0-1

[Event "FIDE Candidates 2024"]
[Site "Toronto"]
[Date "2024.04.20"]
[Round "13.3"]
[White "Vidit, Santosh Gujrathi"]
[Black "Abasov, Nijat"]
[Result "1/2-1/2"]
[ECO "C42"]
[WhiteElo "2727"]
[BlackElo "2632"]
[Annotator "TA"]
[PlyCount "62"]
[EventDate "2024.04.02"]
[EventType "tourn"]
[EventCountry "CAN"]
[SourceTitle "playchess.com"]
[Source "ChessBase"]
[SourceQuality "1"]
[TimeControl "40/7200:1800+30"]

{[%evp 18,62,33,33,37,36,38,39,33,39,42,33,46,17,20,20,15,6,5,12,10,13,12,9,16,13,18,18,14,0,0,0,0,0,20,0,10,9,9,0,0,0,14,0,0,0,13]} 1. e4 {[%emt 0:00:24]} e5 {[%emt 0:00:05]} 2. Nf3 {[%emt 0:00:10]} Nf6 {[%emt 0:00:05][%cal Bg8f6,Bf6e4,Be4d2][%mdl 32]} 3. Nxe5 {[%emt 0:00:14]} d6 {[%emt 0:00:05]} 4. Nf3 {[%emt 0:00:09]} Nxe4 {[%emt 0:00:05]} 5. d4 {[%emt 0:00:22]} d5 {[%emt 0:00:05]} 6. Bd3 {[%emt 0:00:14]} Nc6 {[%emt 0:00:05]} 7. O-O {[%emt 0:01:35]} Be7 {[%emt 0:00:05]} 8. Nbd2 {[%emt 0:10:25]} Nxd2 {[%emt 0:00:31]} 9. Bxd2 {[%emt 0:00:21]} Bg4 {[%emt 0:00:12]} 10. c3 {[%emt 0:01:33]} O-O {[%emt 0:00:14]} 11. h3 {[%emt 0:02:40]} Bh5 {[%emt 0:00:08]} 12. g3 {[%emt 0:00:24]} Qd7 {[%emt 0:00:07] White is slightly better.} 13. Kg2 {[%emt 0:00:20][%cal Of3e5]} Bg6 {[%emt 0:00:13]} 14. Bxg6 {[%emt 0:01:08]} fxg6 {[%emt 0:00:08]} 15. Bf4 {[%emt 0:01:44]} h6 {[%emt 0:00:13] The position is equal.} 16. Qd3 {[%emt 0:08:33]} g5 {[%emt 0:00:09]} 17. Be5 {[%emt 0:02:12]} Rf7 {[%emt 0:00:10]} 18. Rae1 {[%emt 0:00:55]} Raf8 {[%emt 0:00:07]} 19. Re3 {[%emt 0:10:21]} a6 {[%emt 0:00:09]} 20. Qe2 {[%emt 0:11:55]} Rf5 {[%emt 0:10:32]} 21. b4 {[%emt 0:05:05]} (21. g4 $5 R5f7 $8 22. Bg3 $11) 21... R5f7 {[%emt 0:00:00]} 22. a4 {[%emt 0:05:46]} Na7 {[%emt 0:00:00]} 23. g4 {[%emt 0:04:47] Active counter play!} Nc8 {[%emt 0:01:41][%cal Ba7c8,Bc8e7,Be7c6][%mdl 32]} 24. a5 {[%emt 0:02:43]} Bd6 {[%emt 0:27:43]} 25. Re1 {[%emt 0:02:17]} Qd8 {[%emt 0:19:42]} 26. Rf1 {[%emt 0:17:36]} Ne7 {[%emt 0:07:40]} 27. Qd3 {[%emt 0:00:07]} Qd7 {[%emt 0:03:38]} 28. Kg1 {[%emt 0:00:37]} Nc6 {[%emt 0:03:18]} 29. Kg2 {[%emt 0:04:24]} Ne7 {[%emt 0:01:04]} 30. Kg1 {[%emt 0:00:17]} Nc6 {[%emt 0:00:05]} 31. Kg2 {[%emt 0:00:15]} Ne7 {[%emt 0:01:09] Weighted Error Value: White=0.04 (flawless) /Black=0.02 (flawless) .  Inaccurate:     	White=1     	---        OK:         	White=11    	Black=11} 1/2-1/2